bitfinex-derivatives/quotes_ETHF0:USTF0_20260112
["timestamp","ask_amount","ask_price","bid_price","bid_amount"]
[1768223789266,0.38077064,3112.4,3110.9,2.72621216]
[1768223789471,0.38077064,3112.3,3110.9,2.72621216]
[1768223789762,1.24431547,3112.7,3110.9,2.72621216]
[1768223789962,0.3807891,3112.6,3110.9,2.72621216]
[1768223790162,0.3807891,3112.5,3110.9,2.72621216]
[1768223790363,0.3807891,3112.4,3110.9,2.72621216]
[1768223790562,0.3807891,3112.3,3110.9,2.72621216]
[1768223790763,1.24431547,3112.7,3110.9,2.72621216]
[1768223790964,0.3807898,3112.6,3110.9,2.72621216]
[1768223791162,0.3807898,3112.5,3110.9,2.72621216]
[1768223791364,0.3807898,3112.4,3110.9,2.72621216]
[1768223791672,0.3807898,3112.3,3110.9,2.72621216]
[1768223791873,1.24431547,3112.7,3110.9,2.72621216]
[1768223792068,0.3807913,3112.6,3110.9,2.72621216]
[1768223792264,0.3807913,3112.5,3110.9,2.72621216]
[1768223792464,0.3807913,3112.4,3110.9,2.72621216]
[1768223792666,0.3807913,3112.3,3110.9,2.72621216]
[1768223792972,2.65940865,3112.6,3110.9,2.72621216]
[1768223793168,0.38079052,3112.5,3110.9,2.72621216]
[1768223793368,0.38079052,3112.4,3110.9,2.72621216]
[1768223793571,0.38079052,3112.3,3110.9,2.72621216]
[1768223793870,2.65940865,3112.6,3110.9,2.72621216]
[1768223794068,0.38079038,3112.5,3110.9,2.72621216]
[1768223794269,0.38079038,3112.4,3110.9,2.72621216]
[1768223794570,0.38079038,3112.3,3110.9,2.72621216]
[1768223794769,2.65940865,3112.6,3110.9,2.72621216]
[1768223795070,1.33150359,3112.5,3110.9,2.72621216]
[1768223795269,1.33150359,3112.4,3110.9,2.72621216]
[1768223795472,1.33150359,3112.3,3110.9,2.72621216]
[1768223795671,0.95069837,3112.2,3110.9,2.72621216]
[1768223795873,0.95069837,3112.1,3110.9,2.72621216]
[1768223796071,0.95069837,3112.0,3110.9,2.72621216]
[1768223796273,2.65940865,3112.6,3110.9,2.72621216]
[1768223796475,1.33163488,3112.5,3110.9,2.72621216]
[1768223796673,1.33163488,3112.4,3110.9,2.72621216]
[1768223796973,1.33163488,3112.3,3110.9,2.72621216]
[1768223797274,0.95079246,3112.2,3110.9,2.72621216]
[1768223797470,0.95079246,3112.1,3110.9,2.72621216]
[1768223797671,0.95079246,3112.0,3110.9,2.72621216]
[1768223797868,2.65940865,3112.6,3110.9,2.72621216]
[1768223798073,1.33180084,3112.5,3110.9,2.72621216]
[1768223798372,1.33180084,3112.4,3111.5,2.48577512]
[1768223798577,0.00296413,3112.7,3111.6,4.03077512]
[1768223799362,3.84943971,3112.7,3111.3,0.16091]
[1768223799672,2.60512424,3112.6,3111.4,1.545]
[1768223799870,2.60512424,3112.6,3111.5,1.545]
[1768223801579,0.00296413,3112.7,3111.5,4.03077512]
[1768223803877,0.00296413,3112.7,3111.6,1.544]
[1768223810583,0.94999638,3112.6,3111.6,1.544]
[1768223810787,0.94999638,3112.5,3111.7,2.48577512]
[1768223810984,0.00296413,3112.7,3111.7,2.48577512]
[1768223811184,0.94999725,3112.6,3111.7,2.48577512]
[1768223811380,0.94999725,3112.5,3111.7,2.48577512]
[1768223811578,0.00296413,3112.7,3111.7,2.48577512]
[1768223811784,0.94661554,3112.6,3111.7,2.48577512]
[1768223811976,0.94661554,3112.5,3111.7,2.48577512]
[1768223812284,0.00296413,3112.7,3111.7,2.48577512]
[1768223812482,0.94668136,3112.6,3111.7,2.48577512]
[1768223812685,0.94668136,3112.5,3111.7,2.48577512]
[1768223812982,0.00296413,3112.7,3111.7,2.48577512]
[1768223813184,0.94668147,3112.6,3111.7,2.48577512]
[1768223813484,0.94668147,3112.5,3111.7,2.48577512]
[1768223813684,0.00296413,3112.7,3111.7,2.48577512]
[1768223813886,0.94664141,3112.6,3111.7,2.48577512]
[1768223814087,0.94664141,3112.5,3111.7,2.48577512]
[1768223814286,0.00296413,3112.7,3111.7,2.48577512]
[1768223814486,0.94662132,3112.6,3111.7,2.48577512]
[1768223814685,0.94662132,3112.5,3111.7,2.48577512]
[1768223814890,0.00296413,3112.7,3111.7,2.48577512]
[1768223815081,0.94662425,3112.6,3111.7,2.48577512]
[1768223815381,0.94662425,3112.5,3111.7,2.48577512]
[1768223815577,0.00296413,3112.7,3111.7,2.48577512]
[1768223815777,0.94662824,3112.6,3111.7,2.48577512]
[1768223815982,0.94662824,3112.5,3111.7,2.48577512]
[1768223816182,0.00296413,3112.7,3111.7,2.48577512]
[1768223816383,0.94663168,3112.6,3111.7,2.48577512]
[1768223816586,0.94663168,3112.5,3111.7,2.48577512]
[1768223816784,0.00296413,3112.7,3111.7,2.48577512]
[1768223816985,0.94671871,3112.6,3111.7,2.48577512]
[1768223817184,0.94671871,3112.5,3111.7,2.48577512]
[1768223817386,0.00296413,3112.7,3111.7,2.48577512]
[1768223817589,0.9467167,3112.6,3111.7,2.48577512]
[1768223817789,0.00296413,3112.7,3111.7,2.48577512]
[1768223818092,0.94676518,3112.6,3111.7,2.48577512]
[1768223818399,0.00296413,3112.7,3111.7,2.48577512]
[1768223818694,0.9468303,3112.6,3111.7,2.48577512]
[1768223818888,0.00296413,3112.7,3111.7,2.48577512]
[1768223819086,0.94683705,3112.6,3111.7,2.48577512]
[1768223819287,0.00296413,3112.7,3111.7,2.48577512]
[1768223819485,0.94684311,3112.6,3111.7,2.48577512]
[1768223819688,0.00296413,3112.7,3111.7,2.64666512]
[1768223820284,0.00296413,3112.7,3111.8,2.64665512]
[1768223822993,0.00296413,3112.7,3111.4,2.48577512]
[1768223823184,0.94647014,3112.6,3111.4,2.48577512]
[1768223823498,0.00296413,3112.7,3111.5,1.55]
[1768223823799,0.94658094,3112.6,3111.5,1.55]
[1768223823992,0.00296413,3112.7,3111.5,1.55]
[1768223824192,0.94668004,3112.6,3111.5,1.55]
[1768223824493,0.94668004,3112.5,3111.5,1.55]
[1768223824693,0.00296413,3112.7,3111.5,1.55]
[1768223824892,0.94689056,3112.6,3111.5,1.55]
[1768223825197,0.94689056,3112.5,3111.5,1.55]
[1768223825391,0.00296413,3112.7,3111.5,1.55]
[1768223825592,0.94702473,3112.6,3111.5,1.55]
[1768223825792,0.94702473,3112.5,3111.5,1.55]
[1768223826093,0.00296413,3112.7,3111.5,1.55]
[1768223826287,0.94702531,3112.6,3111.5,1.55]
[1768223826482,0.94702531,3112.5,3111.5,1.55]
[1768223826687,0.00296413,3112.7,3111.5,1.55]
[1768223826888,0.94718519,3112.6,3111.5,1.55]
[1768223827089,0.94718519,3112.5,3111.5,1.55]
[1768223827289,0.00296413,3112.7,3111.6,1.24105147]
[1768223827489,0.94738728,3112.6,3111.6,3.74955894]
[1768223827696,0.00296413,3112.7,3111.6,3.74955894]
[1768223827897,0.94744489,3112.6,3111.6,3.74955894]
[1768223828098,0.00296413,3112.7,3111.6,3.74955894]
[1768223828397,0.94744462,3112.6,3111.6,3.74955894]
[1768223828697,0.00296413,3112.7,3111.7,2.50850747]
[1768223828897,0.94767184,3112.6,3111.7,2.50850747]
[1768223829096,0.00296413,3112.7,3111.7,2.50850747]
[1768223829302,0.94765958,3112.6,3111.7,2.50850747]
[1768223829597,0.00296413,3112.7,3111.7,2.50850747]
[1768223829795,0.94763944,3112.6,3111.8,1.24105147]
[1768223829996,0.00296413,3112.7,3111.8,1.24105147]
[1768223830298,0.94763988,3112.6,3111.8,1.24105147]
[1768223830491,0.00296413,3112.7,3111.8,1.24105147]
[1768223830798,0.94769456,3112.6,3111.8,1.24105147]
[1768223830989,0.00296413,3112.7,3111.8,1.24105147]
[1768223831197,0.94769628,3112.6,3111.8,1.24105147]
[1768223831394,0.00296413,3112.7,3111.8,1.24105147]
[1768223831594,0.94779251,3112.6,3111.8,1.24105147]
[1768223831891,0.00296413,3112.7,3111.8,1.24105147]
[1768223832092,0.94779132,3112.6,3111.7,2.50850747]
[1768223832291,0.00296413,3112.7,3111.8,1.24105147]
[1768223832492,0.94780245,3112.6,3111.8,1.24105147]
[1768223832689,0.00296413,3112.7,3111.8,1.24105147]
[1768223833792,0.00296413,3112.7,3111.8,3.9824288]
[1768223833994,0.00296413,3112.7,3112.0,1.24105147]
[1768223834194,0.00296413,3112.7,3112.1,1.565]
[1768223835997,2.30174562,3113.6,3112.4,1.24105147]
[1768223836198,1.31817453,3113.5,3112.4,1.24105147]
[1768223836502,0.94767565,3113.4,3112.4,1.24105147]
[1768223836696,1.24105147,3112.9,3112.3,1.566]
[1768223836902,1.24377256,3112.9,3112.3,1.566]
[1768223837300,0.00272109,3112.9,3112.3,1.566]
[1768223838203,1.24105147,3112.8,3112.0,0.00250967]
[1768223838501,1.24105147,3112.8,3112.1,1.566]
[1768223840908,0.00272109,3112.9,3112.1,1.566]
[1768223841105,0.94728615,3112.8,3112.1,1.566]
[1768223841304,0.00272109,3112.9,3112.1,1.566]
[1768223841508,0.94709202,3112.8,3112.1,1.566]
[1768223841805,0.00272109,3112.9,3112.1,1.566]
[1768223842101,0.94709137,3112.8,3112.1,1.566]
[1768223842400,0.00272109,3112.9,3112.1,1.566]
[1768223842701,0.94710992,3112.8,3112.1,1.566]
[1768223842900,0.00272109,3112.9,3112.1,1.566]
[1768223843099,0.94710841,3112.8,3112.1,1.566]
[1768223843307,1.24105147,3112.8,3112.0,0.00250967]
[1768223843511,0.94708972,3112.7,3112.0,1.56750967]
[1768223843698,1.24105147,3112.8,3112.0,1.56750967]
[1768223843900,0.94709212,3112.7,3112.0,1.56750967]
[1768223844191,1.24105147,3112.8,3112.0,1.56750967]
[1768223844407,0.94712164,3112.7,3112.0,1.56750967]
[1768223844605,1.24105147,3112.8,3112.0,1.56750967]
[1768223844801,0.94714601,3112.7,3112.0,0.00250967]
[1768223845007,1.24105147,3112.8,3112.0,0.00250967]
[1768223845204,0.94714636,3112.7,3112.0,0.00250967]
[1768223845398,1.24105147,3112.8,3112.0,0.00250967]
[1768223845599,0.94719463,3112.7,3112.0,0.00250967]
[1768223845905,1.24105147,3112.8,3112.0,0.00250967]
[1768223846109,0.94719467,3112.7,3112.0,0.00250967]
[1768223846301,1.24105147,3112.8,3112.0,0.00250967]
[1768223846501,0.94723641,3112.7,3112.0,0.00250967]
[1768223846704,1.24105147,3112.8,3112.0,0.00250967]
[1768223846903,0.94723641,3112.7,3112.0,0.00250967]
[1768223847109,1.24105147,3112.8,3112.0,0.00250967]
[1768223847310,0.94723641,3112.7,3112.0,0.00250967]
[1768223847512,1.24105147,3112.8,3112.0,0.00250967]
[1768223847706,0.94727937,3112.7,3112.0,0.00250967]
[1768223848012,1.24105147,3112.8,3112.0,0.00250967]
[1768223848310,0.94728016,3112.7,3112.0,0.00250967]
[1768223848611,0.00272109,3112.9,3112.0,0.00250967]
[1768223848813,0.947323,3112.8,3112.0,0.00250967]
[1768223849008,0.947323,3112.7,3112.0,0.00250967]
[1768223849313,0.00272109,3112.9,3112.0,0.00250967]
[1768223849607,0.94736828,3112.8,3112.0,0.00250967]
[1768223849804,0.94736828,3112.7,3112.0,0.00250967]
[1768223850006,0.00272109,3112.9,3112.0,0.00250967]
[1768223850208,0.94737011,3112.8,3112.0,0.00250967]
[1768223850507,0.94737011,3112.7,3112.0,0.00250967]
[1768223850708,0.00272109,3112.9,3112.0,1.24356114]
[1768223850909,0.94737287,3112.8,3112.0,1.24356114]
[1768223851206,0.00272109,3112.9,3112.3,1.24105147]
[1768223851403,0.00272109,3112.9,3112.1,3.9824288]
[1768223852705,0.00272109,3112.9,3112.3,1.24105147]
[1768223852911,2.63637614,3113.5,3112.3,1.24105147]
[1768223853915,2.64006196,3113.5,3112.3,1.24105147]
[1768223855915,1.24105147,3113.3,3112.1,0.16087]
[1768223856214,1.24105147,3112.7,3112.0,0.00250967]
[1768223856408,2.60606497,3113.0,3112.0,0.00250967]
[1768223856609,1.24105147,3112.7,3112.0,0.00250967]
[1768223857011,2.60606497,3113.0,3112.0,0.00250967]
[1768223857012,1.24105147,3112.5,3112.0,0.00250967]
[1768223857314,1.24105147,3112.7,3111.7,1.563]
[1768223857516,1.24105147,3112.5,3111.5,0.16089]
[1768223857710,1.24105147,3112.5,3111.5,1.72389]
[1768223858409,3.84711644,3112.3,3111.5,0.00254489]
[1768223858615,1.24105147,3111.6,3110.2,0.16096]
[1768223858814,1.24105147,3111.3,3110.3,1.563]
[1768223859009,2.60606497,3112.1,3110.6,1.24105147]
[1768223859218,0.35945534,3112.0,3110.6,1.24105147]
[1768223859414,3.84711644,3112.1,3110.6,1.24105147]
[1768223859612,0.35901708,3112.0,3110.6,1.2439278]
[1768223859813,1.24105147,3111.9,3110.6,1.2439278]
[1768223862816,1.24105147,3111.9,3110.6,0.00287633]
[1768223863118,0.93963587,3111.8,3110.6,0.00287633]
[1768223863313,3.84711644,3111.9,3110.6,0.00287633]
[1768223863525,1.24105147,3111.3,3110.6,0.00287633]
[1768223864020,1.24105147,3111.3,3110.4,1.563]
[1768223864216,1.24105147,3111.3,3110.2,0.16096]
[1768223864521,1.24105147,3111.3,3110.3,1.563]
[1768223865020,1.24105147,3111.3,3110.3,1.56699551]
[1768223866217,1.24105147,3111.3,3110.3,0.00399551]
[1768223866421,1.24105147,3111.1,3110.3,0.00399551]
[1768223867223,1.24105147,3111.3,3110.3,0.00399551]
[1768223867815,3.84711644,3111.3,3110.3,0.00399551]
[1768223873125,2.60606497,3111.2,3110.3,0.00399551]
[1768223873327,2.60606497,3111.1,3109.9,1.562]
[1768223873519,2.60606497,3111.1,3109.9,2.80305147]
[1768223874223,2.60606497,3111.1,3110.1,1.24105147]
[1768223874437,2.60606497,3111.1,3110.1,1.2451232]
[1768223874629,2.60606497,3111.1,3110.1,0.00407173]
[1768223878437,1.24105147,3111.4,3110.1,1.2451232]
[1768223878737,3.84711644,3111.4,3110.1,0.00407173]
[1768223878941,3.84711644,3111.4,3110.2,1.24105147]
[1768223879831,2.60606497,3111.4,3110.2,1.24105147]
[1768223881243,2.60606497,3112.0,3110.4,1.24105147]
[1768223881445,3.84711644,3111.8,3110.4,1.24105147]
[1768223881646,2.60606497,3111.7,3110.4,1.24105147]
[1768223881835,2.60606497,3111.7,3110.1,0.00407173]
[1768223882036,2.60606497,3111.7,3110.8,1.24105147]
[1768223882541,2.60606497,3111.7,3110.1,0.00407173]
[1768223882542,2.60876374,3112.1,3111.2,1.24105147]
[1768223882750,2.60876374,3112.1,3111.0,2.80105147]
[1768223884232,0.00269877,3112.1,3111.2,1.24105147]
[1768223886641,0.00269877,3112.1,3111.4,1.24105147]
[1768223888840,0.00269877,3112.1,3111.1,0.16092]
[1768223889040,0.00269877,3112.1,3111.3,1.24105147]
[1768223889345,0.00269877,3112.1,3111.2,1.56]
[1768223895250,0.00269877,3112.1,3111.2,1.72091]
[1768223895644,2.47941121,3113.0,3111.2,5.62293169]
[1768223895844,3.41818565,3112.9,3111.2,5.62293169]
[1768223896050,0.93877444,3112.8,3111.2,5.62293169]
[1768223896650,3.42045517,3112.8,3111.2,5.62293169]
[1768223896951,0.93877444,3112.7,3111.2,5.62293169]
[1768223897154,0.93877444,3112.6,3111.3,0.16091]
[1768223897340,0.93877444,3112.5,3111.3,0.16091]
[1768223897543,2.48168073,3112.8,3111.3,0.16091]
[1768223897743,0.93867496,3112.7,3111.3,0.16091]
[1768223897943,0.93867496,3112.6,3111.3,0.16091]
[1768223898152,0.93867496,3112.5,3111.3,0.16091]
[1768223898357,2.48168073,3112.8,3111.3,0.16091]
[1768223898556,0.93864533,3112.7,3111.3,0.16091]
[1768223898745,0.93864533,3112.6,3111.3,0.16091]
[1768223898945,2.48168073,3112.8,3111.5,0.1609]
[1768223899146,0.9387819,3112.7,3111.5,0.1609]
[1768223899450,2.48168073,3112.8,3111.5,0.1609]
[1768223899652,0.93880446,3112.7,3111.5,0.1609]
[1768223899843,2.48168073,3112.8,3111.5,0.1609]
[1768223900044,0.93872976,3112.7,3111.5,0.1609]
[1768223900340,2.48168073,3112.8,3111.5,0.1609]
[1768223900544,0.93864147,3112.7,3111.5,0.1609]
[1768223900740,2.48168073,3112.8,3111.5,0.1609]
[1768223900946,1.24137383,3112.2,3110.4,2.82159786]
[1768223901147,2.47941121,3112.0,3110.4,2.82159786]
[1768223901342,2.47941121,3112.0,3110.4,3.217]
[1768223901549,2.47941121,3111.8,3110.5,1.559]
[1768223904361,2.47941121,3111.6,3110.5,1.559]
[1768223904554,2.47941121,3111.6,3110.1,0.00407173]
[1768223904750,2.47941121,3111.6,3110.5,1.558]
[1768223906660,2.47941121,3111.6,3110.4,1.558]
[1768223909960,2.47941121,3111.4,3110.1,0.00407173]
[1768223910157,2.47941121,3111.2,3110.1,0.00407173]
[1768223914762,1.24137383,3110.9,3109.4,0.16101]
[1768223915065,2.55944336,3110.8,3109.3,1.557]
[1768223915859,2.55944336,3110.6,3109.3,0.00329918]
[1768223916164,2.56181983,3110.6,3109.3,0.00329918]
[1768223921059,0.00237647,3110.6,3109.3,0.00329918]
[1768223921367,0.00237647,3110.6,3109.3,0.16430918]
[1768223921566,0.00237647,3110.6,3109.3,1.40568301]
[1768223921764,0.00237647,3110.6,3109.3,1.24467301]
[1768223921966,0.00237647,3110.6,3109.4,0.16101]
[1768223924872,0.00237647,3110.6,3109.5,0.161]
[1768223926660,0.00237647,3110.6,3109.6,0.161]
[1768223928675,0.00237647,3110.6,3109.7,0.16099]
[1768223929174,2.55944336,3111.4,3110.0,0.16097]
[1768223929363,0.93817822,3111.3,3110.1,1.555]
[1768223929566,2.55944336,3111.4,3110.1,1.555]
[1768223929868,0.93817987,3111.3,3110.1,1.555]
[1768223930171,0.00227076,3111.3,3110.1,1.555]
[1768223931566,0.00227076,3111.3,3110.0,0.16097]
[1768223931771,0.00227076,3111.3,3110.1,1.554]
[1768223934673,0.00227076,3111.3,3110.1,4.08053223]
[1768223934876,2.55944336,3112.2,3110.9,1.24137383]
[1768223935074,3.49947187,3112.1,3110.6,0.16094]
[1768223935275,3.49947187,3112.0,3110.6,0.16094]
[1768223935476,0.94002851,3111.9,3110.6,0.16094]
[1768223935774,0.94002851,3111.8,3110.6,0.16094]
[1768223936075,0.00277561,3111.9,3110.6,0.16094]
[1768223936262,0.93982187,3111.8,3110.6,0.16094]
[1768223936469,2.56221897,3111.9,3110.6,0.16094]
[1768223936777,2.55944336,3111.7,3110.5,1.558]
[1768223939576,2.55944336,3111.7,3110.6,1.561]
[1768223940476,2.55944336,3111.5,3110.0,1.561]
[1768223940675,2.55944336,3111.3,3110.0,1.561]
[1768223941076,2.55944336,3111.1,3109.6,0.161]
[1768223941277,2.55944336,3111.1,3109.7,1.561]
[1768223943478,2.55944336,3111.1,3109.6,0.161]
[1768223944483,2.64671915,3111.8,3109.8,0.16098]
[1768223944684,0.16365561,3111.9,3109.8,0.16098]
[1768223944685,2.64671915,3111.6,3109.8,0.16098]
[1768223944876,2.64671915,3111.4,3109.8,0.16098]
[1768223945075,3.58613176,3111.3,3109.8,0.16098]
[1768223945277,0.93941261,3111.2,3109.8,0.16098]
[1768223945476,2.64671915,3111.3,3109.8,0.16098]
[1768223945689,0.93945976,3111.2,3109.8,0.16098]
[1768223945902,2.64671915,3111.3,3109.8,0.16098]
[1768223946090,3.58617903,3111.2,3109.8,0.16098]
[1768223946291,2.64671915,3111.2,3109.8,0.16098]
[1768223949207,2.64671915,3111.2,3109.9,0.16098]
[1768223951207,2.64671915,3111.2,3110.0,0.16097]
[1768223952501,2.48142102,3111.9,3110.3,0.16096]
[1768223952798,0.94071614,3111.8,3110.4,0.16095]
[1768223953006,0.94071614,3111.7,3110.5,1.559]
[1768223953194,0.94071614,3111.6,3110.5,1.559]
[1768223953394,2.48142102,3111.9,3110.5,1.559]
[1768223953602,0.94072096,3111.8,3110.5,1.559]
[1768223953793,0.94072096,3111.7,3110.5,1.559]
[1768223953993,2.48142102,3111.9,3110.5,1.559]
[1768223954194,0.94070622,3111.8,3110.5,1.559]
[1768223954403,0.94070622,3111.7,3110.5,1.559]
[1768223954603,2.48142102,3111.9,3110.6,0.16094]
[1768223954897,0.94076199,3111.8,3110.6,0.16094]
[1768223955098,2.48142102,3111.9,3110.6,0.16094]
[1768223955305,0.94083459,3111.8,3110.6,0.16094]
[1768223955506,2.48142102,3111.9,3110.6,0.16094]
[1768223955707,0.94072601,3111.8,3110.6,0.16094]
[1768223955906,2.48142102,3111.9,3110.6,0.16094]
[1768223956107,0.94072619,3111.8,3110.6,0.16094]
[1768223956406,2.48142102,3111.9,3110.6,0.16094]
[1768223956706,0.94067184,3111.8,3110.6,0.16094]
[1768223956894,2.48142102,3111.9,3110.6,0.16094]
[1768223957094,0.94067296,3111.8,3110.6,0.16094]
[1768223957306,2.48142102,3111.9,3110.6,0.16094]
[1768223957505,0.94068102,3111.8,3110.6,0.16094]
[1768223957703,2.48142102,3111.9,3110.6,0.16094]
[1768223958010,2.47864541,3111.7,3110.6,1.71894]
[1768223959308,2.47864541,3111.7,3110.6,2.96080978]
[1768223962408,2.47864541,3111.7,3110.8,1.24186978]
[1768223963914,2.47864541,3111.7,3110.6,2.96080978]
[1768223968115,2.47864541,3111.7,3110.6,1.71894]
[1768223968317,2.47864541,3111.7,3110.7,1.24186978]
[1768223977224,0.00277561,3111.9,3110.7,1.24186978]
[1768223977528,2.60700956,3112.5,3111.8,1.24186978]
[1768223977713,0.94161841,3112.4,3111.6,1.582]
[1768223978020,0.94161841,3112.3,3111.6,1.582]
[1768223978220,2.60700956,3112.4,3111.6,1.582]
[1768223978423,2.60700956,3112.2,3111.6,1.58577776]
[1768223978610,3.84887934,3112.2,3111.6,0.00377776]
[1768223978812,2.60700956,3112.1,3111.1,0.16092]
[1768223979016,2.60700956,3111.7,3111.0,1.582]
[1768223979220,2.60700956,3111.7,3110.5,0.16095]
[1768223979523,2.60700956,3111.7,3110.6,1.582]
[1768223979822,2.60700956,3111.7,3110.6,1.58613976]
[1768223980616,2.60700956,3111.7,3110.6,2.82800954]
[1768223983412,2.60700956,3111.7,3110.8,1.24186978]
[1768223984524,2.60700956,3112.3,3111.0,1.24186978]
[1768223984727,2.60700956,3112.1,3111.0,1.24186978]
[1768223984925,0.94245759,3112.0,3111.0,1.24186978]
[1768223986228,0.94245759,3112.0,3111.2,1.24186978]
[1768223987223,3.84887934,3111.9,3110.9,0.16093]
[1768223987421,2.60700956,3111.7,3110.9,0.16093]
[1768223987731,2.60700956,3111.7,3110.9,1.74393]
[1768223993739,2.60700956,3112.1,3111.0,1.24186978]
[1768223994037,0.94213284,3112.0,3111.0,1.24186978]
[1768223994229,0.94213284,3111.9,3110.9,1.74393]
[1768223994429,2.60700956,3112.0,3110.9,1.74393]
[1768223994629,0.9421304,3111.9,3110.9,1.74393]
[1768223994932,2.60700956,3112.0,3110.9,1.74393]
[1768223995137,0.94213247,3111.9,3110.9,1.74393]
[1768223995437,2.60700956,3112.0,3110.9,1.74393]
[1768223995635,2.60700956,3111.8,3110.6,0.00413976]
[1768223995838,2.60700956,3111.5,3110.6,0.00413976]
[1768223996033,2.60700956,3111.5,3110.7,1.59]
[1768224005643,2.60700956,3111.5,3110.6,0.00413976]
[1768224005939,2.60700956,3111.5,3110.6,1.59313976]
[1768224006135,2.60700956,3111.5,3110.6,0.00413976]
[1768224006341,2.64424596,3111.0,3110.2,1.589]
[1768224006543,2.64424596,3111.0,3110.0,0.16097]
[1768224006544,2.64424596,3111.0,3110.0,1.74997]
[1768224007341,2.64424596,3111.0,3110.0,1.75240425]
[1768224014744,2.46568239,3111.7,3110.0,1.75240425]
[1768224014939,2.46568239,3111.5,3110.0,1.75240425]
[1768224015141,3.40522461,3111.4,3110.0,1.75240425]
[1768224015340,0.93954222,3111.3,3110.0,1.75240425]
[1768224015548,2.46568239,3111.4,3110.1,0.16097]
[1768224015740,0.93951018,3111.3,3110.1,0.16097]
[1768224015942,2.46568239,3111.4,3110.1,0.16097]
[1768224016138,0.93950984,3111.3,3110.1,0.16097]
[1768224016340,2.46568239,3111.4,3110.1,0.16097]
[1768224016638,0.93942624,3111.3,3110.1,0.16097]
[1768224016844,2.46568239,3111.4,3110.1,0.16097]
[1768224017040,0.93942604,3111.3,3110.1,0.16097]
[1768224017241,2.46568239,3111.4,3110.1,0.16097]
[1768224017446,0.93943431,3111.3,3110.1,0.16097]
[1768224017646,2.46568239,3111.4,3110.1,0.16097]
[1768224017836,0.93943431,3111.3,3110.1,0.16097]
[1768224018045,2.46568239,3111.4,3110.1,0.16097]
[1768224018347,0.9394293,3111.3,3110.1,0.16097]
[1768224018547,2.46568239,3111.4,3110.1,0.16097]
[1768224018748,0.93942967,3111.3,3110.1,0.16097]
[1768224018947,2.46568239,3111.4,3110.1,0.16097]
[1768224019149,0.93943074,3111.3,3110.1,0.16097]
[1768224019344,2.46568239,3111.4,3110.1,0.16097]
[1768224019642,3.40513691,3111.3,3110.1,0.16097]
[1768224019842,2.46568239,3111.3,3110.1,0.16097]
[1768224023651,2.46568239,3111.3,3110.0,1.59143425]
[1768224023951,2.46568239,3111.3,3110.4,0.16095]
[1768224026948,2.46568239,3111.3,3110.1,1.592]
[1768224031257,2.46568239,3111.1,3110.1,1.592]
[1768224036163,0.9416421,3111.0,3110.1,1.592]
[1768224036361,2.46568239,3111.1,3110.1,1.592]
[1768224036564,0.94164238,3111.0,3110.1,1.592]
[1768224036763,2.46568239,3111.1,3110.1,1.592]
[1768224036959,3.43471128,3111.0,3110.1,1.592]
[1768224037159,2.49307089,3111.0,3110.1,1.592]
[1768224045972,2.49307089,3111.0,3110.1,1.75297]
[1768224047767,2.49307089,3111.0,3110.1,0.16097]
[1768224047968,2.49307089,3111.0,3110.2,1.604]
[1768224049563,2.49307089,3111.4,3110.2,1.76496]
[1768224049769,0.94198614,3111.3,3110.3,0.16096]
[1768224050062,0.94198614,3111.2,3110.4,0.16095]
[1768224050271,2.49307089,3111.4,3110.4,0.16095]
[1768224050474,0.94196061,3111.3,3110.4,0.16095]
[1768224050767,0.94196061,3111.2,3110.4,0.16095]
[1768224050967,2.49307089,3111.4,3110.4,0.16095]
[1768224051561,2.49307089,3112.1,3110.4,0.16095]
[1768224051761,2.49307089,3111.9,3110.4,0.16095]
[1768224051961,2.49307089,3111.7,3110.4,0.16095]
[1768224052269,0.94156928,3111.6,3110.4,0.16095]
[1768224052461,0.94156928,3111.5,3110.4,0.16095]
[1768224052661,2.49307089,3111.7,3110.4,0.16095]
[1768224052862,0.9413621,3111.6,3110.4,0.16095]
[1768224053065,0.9413621,3111.5,3110.4,0.16095]
[1768224053265,2.49307089,3111.7,3110.4,0.16095]
[1768224053466,0.94120409,3111.6,3110.4,0.16095]
[1768224053666,0.94120409,3111.5,3110.5,0.16095]
[1768224053872,2.49307089,3111.7,3110.5,0.16095]
[1768224054072,0.94121651,3111.6,3110.5,0.16095]
[1768224054375,0.94121651,3111.5,3110.5,0.16095]
[1768224054572,2.49307089,3111.7,3110.5,0.16095]
[1768224054770,0.9410641,3111.6,3110.5,0.16095]
[1768224055070,0.9410641,3111.5,3110.5,0.16095]
[1768224055270,2.49307089,3111.7,3110.5,0.16095]
[1768224055470,0.94092491,3111.6,3110.5,0.16095]
[1768224055771,2.49307089,3111.7,3110.5,0.16095]
[1768224055960,0.94092529,3111.6,3110.5,0.16095]
[1768224056163,2.49307089,3111.7,3110.5,0.16095]
[1768224056360,2.49307089,3111.5,3110.5,0.16095]
[1768224058479,2.49307089,3111.5,3110.6,0.16094]
[1768224059877,2.49307089,3112.3,3110.7,0.16094]
[1768224060065,2.49307089,3112.1,3110.7,0.16094]
[1768224060269,2.49307089,3111.9,3110.7,0.16094]
[1768224060470,0.94063027,3111.8,3110.7,0.16094]
[1768224060670,0.94063027,3111.7,3110.7,0.16094]
[1768224060973,2.49307089,3111.9,3110.8,0.16093]
[1768224061277,0.94049482,3111.8,3110.8,0.16093]
[1768224061472,2.49307089,3111.9,3110.8,0.16093]
[1768224061677,0.9404059,3111.8,3110.8,0.16093]
[1768224061976,2.49307089,3111.9,3110.8,0.16093]
[1768224063767,2.49307089,3111.9,3110.9,0.16093]
[1768224067682,2.49307089,3111.9,3111.0,0.16092]
[1768224072383,2.55458546,3112.3,3111.2,1.24171005]
[1768224072685,3.49477991,3112.2,3111.2,1.24171005]
[1768224072983,0.94019445,3112.1,3111.2,1.24171005]
[1768224073281,2.55458546,3112.2,3111.2,1.24171005]
[1768224073477,0.94023307,3112.1,3111.2,1.24171005]
[1768224073671,2.55458546,3112.2,3111.2,1.24171005]
[1768224073870,2.55458546,3112.2,3111.2,1.40262005]
[1768224074072,2.55458546,3112.2,3111.6,1.24171005]
[1768224074272,0.00360424,3112.4,3111.6,1.24171005]
[1768224074672,2.5581897,3112.4,3111.6,1.24171005]
[1768224074879,0.00360424,3112.4,3112.0,1.24171005]
[1768224075074,2.55458546,3112.8,3111.6,0.16089]
[1768224075273,2.55458546,3112.6,3111.6,1.40260005]
[1768224075476,2.55458546,3112.6,3111.8,1.24171005]
[1768224075672,2.55458546,3112.6,3112.0,1.24171005]
[1768224075881,2.54880794,3112.6,3112.0,1.24171005]
[1768224076080,2.55117301,3112.6,3112.0,1.24171005]
[1768224076281,0.5946893,3113.9,3112.0,1.24171005]